bitfinex-derivatives/quotes_ETHF0:USTF0_20250627
["timestamp","ask_amount","ask_price","bid_price","bid_amount"]
[1751051387975,0.83122,2405.0,2404.9,26.687]
[1751051388375,0.9699,2405.3,2404.9,26.687]
[1751051388575,0.83116,2405.2,2405.1,0.83118]
[1751051388872,0.83116,2405.2,2405.1,27.51918]
[1751051389067,3.2078,2405.4,2404.8,3.2078]
[1751051389273,0.83124,2405.0,2404.9,27.51825]
[1751051389474,0.83124,2405.0,2404.9,26.687]
[1751051389675,0.83124,2405.0,2404.9,27.51826]
[1751051389877,0.83124,2405.0,2404.9,26.687]
[1751051390071,0.83124,2405.0,2404.9,27.51826]
[1751051390274,0.83121,2405.1,2404.9,27.51826]
[1751051390577,0.83122,2405.1,2405.0,0.83122]
[1751051390776,0.83122,2405.0,2404.9,26.687]
[1751051390971,0.83122,2405.0,2404.9,28.0793]
[1751051392175,0.8312,2405.1,2405.0,0.8312]
[1751051392379,3.2078,2405.4,2405.1,0.83117]
[1751051392380,0.83118,2405.2,2405.1,0.83117]
[1751051393670,3.2078,2405.4,2405.0,28.0783]
[1751051393877,0.83113,2405.3,2405.2,0.83113]
[1751051394065,0.83113,2405.3,2405.2,27.51613]
[1751051395475,0.83113,2405.3,2405.2,27.51615]
[1751051395876,4.03891,2405.4,2405.3,0.83112]
[1751051396177,3.2078,2405.4,2405.3,0.83112]
[1751051396584,3.2078,2405.4,2405.3,3.11902]
[1751051397671,4.99,2405.7,2405.6,0.83101]
[1751051397873,0.83088,2406.0,2405.9,0.83091]
[1751051398081,0.83086,2406.1,2406.0,0.83087]
[1751051398476,0.83086,2406.1,2405.9,30.71968]
[1751051398781,0.83088,2406.0,2405.9,30.71968]
[1751051398982,0.83086,2406.1,2406.0,0.83088]
[1751051399179,1.86656696,2406.1,2406.0,0.83088]
[1751051399584,0.83086,2406.1,2406.0,0.83088]
[1751051399775,0.83088,2406.0,2405.9,30.71968]
[1751051400075,0.83088,2406.0,2405.9,29.8888]
[1751051400284,0.83088,2406.0,2405.9,29.8878]
[1751051400877,5.82088,2406.0,2405.9,29.8878]
[1751051401788,5.82088,2406.0,2405.9,3.2078]
[1751051402084,5.82088,2406.0,2405.9,29.8848]
[1751051402473,5.82088,2406.0,2405.9,3.2078]
[1751051406489,9.68988166,2406.0,2405.9,3.2078]
[1751051407495,0.83091,2405.9,2405.8,29.8828]
[1751051408099,0.83091,2405.9,2405.8,30.71374]
[1751051408700,0.83091,2405.9,2405.8,29.8828]
[1751051408701,0.85271,2405.9,2405.8,29.8828]
[1751051410800,0.0218,2405.9,2405.8,30.71374]
[1751051410997,0.83087,2406.1,2406.0,0.83088]
[1751051411302,5.82081,2406.2,2406.1,0.83083]
[1751051411601,0.83081,2406.2,2406.1,30.70063]
[1751051412288,0.83081,2406.2,2406.1,30.70064]
[1751051412495,0.83081,2406.2,2406.1,29.8698]
[1751051412699,0.83081,2406.2,2406.1,30.70064]
[1751051413799,2.9142,2406.4,2406.1,33.73880166]
[1751051414008,3.74496,2406.4,2406.3,0.83077]
[1751051414297,2.9142,2406.4,2406.3,30.52500166]
[1751051414493,0.83074,2406.4,2406.3,26.656]
[1751051414804,0.83074,2406.4,2406.3,27.48677]
[1751051415002,0.83074,2406.4,2406.3,26.656]
[1751051415202,0.83074,2406.4,2406.1,7.07680166]
[1751051415203,0.83081,2406.2,2406.1,4.03863]
[1751051415402,0.83081,2406.2,2406.1,30.69463]
[1751051415899,0.83081,2406.2,2406.1,29.8618]
[1751051416399,0.83081,2406.2,2406.1,30.69264]
[1751051416902,4.69981166,2406.2,2406.1,3.2078]
[1751051417105,4.69981166,2406.2,2406.1,29.8588]
[1751051417297,9.68981166,2406.2,2406.1,29.8588]
[1751051417497,12.05581166,2406.2,2406.1,29.8588]
[1751051417906,5.82081,2406.2,2406.1,30.68964]
[1751051418198,0.83081,2406.2,2406.1,29.8588]
[1751051418397,0.83094,2405.9,2405.8,3.2078]
[1751051418594,0.8309,2406.0,2405.8,30.68774]
[1751051419003,0.83091,2405.9,2405.8,29.8568]
[1751051419201,0.83091,2405.9,2405.8,30.68774]
[1751051419401,0.8309,2406.0,2405.8,30.68774]
[1751051419601,0.83091,2405.9,2405.8,29.8568]
[1751051420302,0.83091,2405.9,2405.8,30.68774]
[1751051420498,0.83091,2405.9,2405.8,29.8568]
[1751051420995,0.83091,2405.9,2405.8,30.68774]
[1751051421399,0.83091,2405.9,2405.8,29.8568]
[1751051423006,0.83091,2405.9,2405.8,30.68774]
[1751051423214,0.83091,2405.9,2405.8,29.8568]
[1751051424094,0.83091,2406.0,2405.8,30.68774]
[1751051424297,10.22200166,2406.2,2405.8,30.68774]
[1751051424499,0.83091,2405.9,2405.8,30.68774]
[1751051425401,0.83091,2405.9,2405.8,29.8568]
[1751051425603,0.83091,2405.9,2405.8,30.68774]
[1751051426006,0.83091,2405.9,2405.8,29.8568]
[1751051426204,0.83098,2405.7,2405.6,7.32]
[1751051426508,0.83101,2405.6,2405.5,4.03884]
[1751051426703,0.83101,2405.6,2405.5,30.67684]
[1751051427103,0.83101,2405.7,2405.6,0.831]
[1751051427898,0.83101,2405.6,2405.5,29.8458]
[1751051428103,0.83101,2405.6,2405.5,30.67685]
[1751051428804,2.2841,2405.7,2405.6,0.83101]
[1751051429003,0.83101,2405.6,2405.5,30.67683]
[1751051431214,2.28411,2405.7,2405.6,0.83101]
[1751051431405,0.83101,2405.7,2405.6,0.83101]
[1751051436512,0.83101,2405.6,2405.5,3.2078]
[1751051436719,6.17301166,2405.6,2405.5,29.8308]
[1751051436911,2.30401,2405.6,2405.5,29.8308]
[1751051437117,2.30401,2405.6,2405.5,29.8298]
[1751051438320,2.30401,2405.6,2405.5,30.66085]
[1751051438716,2.30401,2405.6,2405.5,29.8298]
[1751051439016,2.30401,2405.6,2405.5,3.2078]
[1751051439211,2.30401,2405.6,2405.5,29.8278]
[1751051439823,6.17301166,2405.6,2405.5,29.8278]
[1751051440321,11.16301166,2405.6,2405.5,29.8278]
[1751051440522,11.16301166,2405.6,2405.5,29.8258]
[1751051441114,11.16301166,2405.6,2405.5,3.2078]
[1751051441314,11.16301166,2405.6,2405.5,29.8238]
[1751051445417,4.99,2405.6,2405.5,34.52385166]
[1751051445623,1.79692,2405.9,2405.5,33.69280166]
[1751051445930,0.966,2405.9,2405.8,4.03875]
[1751051446122,0.966,2405.9,2405.8,30.64675]
[1751051446828,4.99,2406.1,2406.0,0.83088]
[1751051447017,0.83065,2406.7,2406.5,0.83068]
[1751051447223,5.82213857,2406.9,2406.6,29.8128]
[1751051447427,0.83063,2406.7,2406.6,29.8128]
[1751051447626,1.88113196,2406.7,2406.6,29.8128]
[1751051448927,1.05050196,2406.7,2406.6,29.8128]
[1751051449125,1.88113196,2406.7,2406.6,29.8128]
[1751051449324,1.05050196,2406.7,2406.6,29.8128]
[1751051449528,1.88113196,2406.7,2406.6,29.8128]
[1751051449730,1.88113196,2406.7,2406.6,29.8088]
[1751051453419,5.75013362,2406.7,2406.6,3.2078]
[1751051453623,10.74013362,2406.7,2406.6,29.8008]
[1751051454628,6.87113196,2406.7,2406.6,29.8008]
[1751051454831,6.87113196,2406.7,2406.6,3.2078]
[1751051455029,7.17073,2406.7,2406.6,3.2078]
[1751051455228,5.82063,2406.7,2406.6,3.2078]
[1751051455632,4.99,2406.7,2406.6,7.90747166]
[1751051455828,0.24,2407.0,2406.9,0.83057]
[1751051456028,2.46673857,2408.0,2407.3,2.07605]
[1751051456234,4.38333857,2408.1,2407.9,7.07680166]
[1751051456432,2.46673857,2408.4,2408.0,67.383]
[1751051456634,3.29678857,2408.4,2408.3,3.86900166]
[1751051456837,0.83008,2408.3,2408.2,3.2078]
[1751051457035,2.46673857,2408.4,2408.3,7.294]
[1751051457233,0.83008,2408.3,2408.2,3.2078]
[1751051457430,3.33392712,2408.3,2408.2,37.0838]
[1751051458335,1.87642712,2408.3,2408.2,37.0838]
[1751051459628,11.72088569,2408.3,2407.3,3.2078]
[1751051459940,0.83039,2407.4,2407.3,3.2078]
[1751051460129,0.83039,2407.4,2407.3,70.5778]
[1751051460332,0.83038,2407.5,2407.3,70.5778]
[1751051460632,1.014,2407.7,2407.3,70.5778]
[1751051460829,2.351,2407.7,2407.3,70.5778]
[1751051461034,2.351,2407.7,2406.9,51.0608]
[1751051461035,0.83053,2407.0,2406.9,51.0608]
[1751051461241,0.83052,2407.1,2406.9,10.4998]
[1751051461440,6.327,2407.4,2406.9,37.0688]
[1751051461841,0.83053,2407.0,2406.9,37.0688]
[1751051470335,0.83051,2407.1,2406.9,37.89934]
[1751051470538,0.8305,2407.1,2406.9,38.5379]
[1751051470744,0.8305,2407.1,2406.9,39.36844]
[1751051470943,0.8305,2407.1,2407.0,0.83053]
[1751051471149,0.955,2407.2,2406.9,38.5379]
[1751051471150,0.83053,2407.0,2406.9,39.36845]
[1751051471339,0.83051,2407.1,2407.0,0.83052]
[1751051471639,0.83051,2407.1,2407.0,26.55]
[1751051473031,0.83053,2407.0,2406.9,11.33036]
[1751051473235,0.83053,2407.0,2406.9,37.0448]
[1751051473437,0.83053,2407.0,2406.9,37.87537]
[1751051473637,0.955,2407.2,2406.9,37.87537]
[1751051474936,0.955,2407.2,2407.0,0.83052]
[1751051474937,0.83051,2407.1,2407.0,0.83052]
[1751051475239,0.955,2407.2,2407.0,0.83052]
[1751051475443,0.83048,2407.2,2407.1,26.541]
[1751051477346,0.83048,2407.2,2407.1,27.3715]
[1751051477541,0.7425,2407.5,2407.1,33.95393896]
[1751051477744,0.7425,2407.5,2407.4,0.83039]
[1751051477946,1.8035,2407.6,2407.5,0.83036]
[1751051478142,2.63382,2407.6,2407.5,0.83036]
[1751051478347,0.83036,2407.5,2407.4,26.537]
[1751051479049,0.83051,2407.1,2407.0,0.83051]
[1751051479248,0.83051,2407.1,2407.0,33.792]
[1751051479550,1.3568,2407.4,2407.3,0.83043]
[1751051479736,2.18719,2407.4,2407.3,26.534]
[1751051480446,0.83043,2407.3,2407.2,11.29624]
[1751051480647,0.83043,2407.3,2407.2,37.82724]
[1751051482244,2.18722,2407.4,2407.3,0.83043]
[1751051482551,0.83043,2407.3,2407.2,36.9968]
[1751051482946,0.83043,2407.3,2407.2,37.82726]
[1751051483150,0.83043,2407.3,2407.2,36.9968]
[1751051484049,0.83043,2407.3,2407.2,37.82726]
[1751051484549,0.83043,2407.3,2407.2,36.9968]
[1751051488245,0.83043,2407.3,2407.2,3.2078]
[1751051488445,0.83053,2407.0,2406.9,10.4658]
[1751051488645,0.83053,2407.0,2406.9,36.9808]
[1751051489957,1.73803,2407.0,2406.9,3.2078]
[1751051490145,3.13563,2407.0,2406.9,36.9798]
[1751051490749,3.13563,2407.0,2406.9,36.9778]
[1751051490943,3.13563,2407.0,2406.9,29.7178]
[1751051491342,0.8306,2406.8,2406.7,10.56601101]
[1751051491549,0.8306,2406.8,2406.7,33.767]
[1751051491950,0.8306,2406.8,2406.7,7.258]
[1751051492149,0.83063,2406.7,2406.6,3.30801101]
[1751051492344,0.83067,2406.6,2406.5,3.30801101]
[1751051492651,1.71587,2406.6,2406.5,29.81601101]
[1751051492846,3.09227,2406.6,2406.5,29.81601101]
[1751051494050,0.8852,2406.6,2406.5,30.64671101]
[1751051494249,5.82065,2406.7,2406.6,0.83067]
[1751051494551,0.83065,2406.7,2406.6,6.51753444]
[1751051495355,0.83065,2406.7,2406.6,26.504]
[1751051495546,0.83063,2406.7,2406.6,26.504]
[1751051495748,0.8307,2406.5,2406.4,3.30973444]
[1751051495949,0.83081,2406.2,2406.1,4.15594852]
[1751051496258,3.2394,2406.4,2406.1,31.48977852]
[1751051496446,3.2394,2406.4,2406.1,31.48978852]
[1751051496447,0.83081,2406.2,2406.1,31.48978852]
[1751051497046,0.83079,2406.3,2406.1,27.33384]
[1751051497348,0.83081,2406.2,2406.1,31.48978852]
[1751051497556,0.83079,2406.3,2406.1,27.33383]
[1751051497950,4.07015,2406.4,2406.2,0.83081]
[1751051498154,2.68525,2406.4,2406.3,26.505]
[1751051500652,4.04965,2406.4,2406.3,26.505]
[1751051500859,0.83084,2406.1,2406.0,10.4348]
[1751051501058,0.83084,2406.1,2406.0,36.9338]
[1751051501559,0.83079,2406.3,2406.0,36.9338]
[1751051501961,0.83084,2406.1,2406.0,37.76467]
[1751051502355,8.2089,2406.4,2406.0,37.76467]
[1751051502356,0.83083,2406.2,2406.0,37.76467]
[1751051502555,0.83084,2406.1,2406.0,37.76467]
[1751051502754,0.83083,2406.2,2406.0,37.76467]
[1751051502956,8.2089,2406.4,2406.1,0.83082]
[1751051503152,0.8308,2406.3,2406.2,26.495]
[1751051503554,2.2904,2406.3,2406.2,26.495]
[1751051504952,0.83084,2406.1,2406.0,3.2078]
[1751051505161,0.83084,2406.1,2406.0,29.6988]
[1751051505962,2.21354,2406.1,2406.0,26.491]
[1751051506158,0.83091,2405.9,2405.7,3.2078]
[1751051506366,0.83095,2405.8,2405.7,3.2078]
[1751051506660,2.69275,2405.8,2405.7,29.6968]
[1751051507856,1.8618,2405.8,2405.6,7.228]
[1751051508062,2.21368,2405.7,2405.6,7.228]
[1751051508269,2.21368,2405.7,2405.6,33.715]
[1751051508462,0.83105,2405.5,2405.4,3.2078]
[1751051508656,0.83105,2405.5,2405.4,36.9228]
[1751051508853,7.42094468,2405.5,2405.1,7.9214301]
[1751051509065,7.42094468,2405.5,2405.1,13.7365301]
[1751051509357,7.42094468,2405.5,2405.2,26.485]
[1751051509358,0.83112,2405.3,2405.2,26.485]
[1751051509960,4.99,2405.6,2405.2,26.485]
[1751051510263,0.83107,2405.5,2405.3,0.83111]
[1751051510665,0.83108,2405.4,2405.3,0.83111]
[1751051510965,5.82103,2405.6,2405.4,0.83106]
[1751051511165,4.99,2405.6,2405.5,27.31605]
[1751051511462,2.69277,2405.8,2405.6,0.83098]
[1751051511659,0.2507,2405.9,2405.8,0.83095]
[1751051511962,1.08161,2405.9,2405.8,27.31395]
[1751051512461,0.2507,2405.9,2405.8,27.31395]
[1751051513161,1.08161,2405.9,2405.8,26.483]
[1751051513363,0.83097,2405.8,2405.6,0.83099]
[1751051513666,1.08162,2405.9,2405.8,0.83095]
[1751051513869,1.08162,2405.9,2405.7,27.31296]
[1751051514059,0.83095,2405.8,2405.7,27.31296]
[1751051514367,0.83095,2405.8,2405.7,26.482]
[1751051515268,1.08163,2405.9,2405.7,27.31298]
[1751051515569,1.08164,2405.9,2405.8,0.83095]
[1751051515867,0.83094,2405.9,2405.7,27.31295]
[1751051516171,0.83089,2406.0,2405.8,0.83095]
[1751051516359,1.3957,2406.0,2405.7,26.482]
[1751051516562,0.83095,2405.8,2405.6,0.83099]
[1751051516761,1.3957,2406.0,2405.5,7.229]
[1751051516762,0.83094,2405.9,2405.7,26.477]
[1751051516963,0.83095,2405.8,2405.7,27.30797]
[1751051517163,0.83095,2405.8,2405.7,26.477]
[1751051517771,5.82095,2405.8,2405.7,26.477]
[1751051519869,0.83105,2405.5,2405.4,3.2078]
[1751051520169,0.83114,2405.3,2405.2,7.229]
[1751051520671,0.83114,2405.3,2405.2,33.698]
[1751051521572,2.30604,2405.3,2405.2,33.698]
[1751051521978,2.30604,2405.3,2405.2,33.699]
[1751051522170,1.75421,2405.4,2405.2,34.53015]
[1751051522370,0.83112,2405.3,2405.2,33.699]
[1751051522761,0.9231,2405.4,2405.2,33.699]
[1751051522967,0.9231,2405.4,2405.2,34.53013]
[1751051523279,0.83112,2405.3,2405.2,34.53013]
[1751051523768,0.83112,2405.3,2405.2,33.699]
[1751051524674,0.83112,2405.3,2405.2,33.694]
[1751051525777,1.7542,2405.4,2405.3,0.83112]
[1751051526177,0.83112,2405.3,2405.2,33.694]
[1751051526680,0.83112,2405.3,2405.2,34.52515]
[1751051526882,0.8311,2405.4,2405.2,33.694]
[1751051527078,0.83112,2405.3,2405.2,33.694]
[1751051528381,0.83112,2405.3,2405.2,34.52514]
[1751051530080,0.83112,2405.3,2405.2,34.52513]
[1751051531973,0.83112,2405.3,2405.2,33.694]
[1751051532181,0.83124,2405.0,2404.9,0.83125]
[1751051532482,0.83126,2404.9,2404.8,3.2078]
[1751051532684,0.83126,2404.9,2404.8,29.6558]
[1751051533482,0.83126,2404.9,2404.8,29.6538]
[1751051533881,2.28266,2404.9,2404.8,29.6538]
[1751051534081,2.28268,2404.9,2404.8,26.446]
[1751051534381,6.75095,2405.0,2404.8,27.27729]
[1751051534786,5.9197,2405.0,2404.8,27.27729]
[1751051534986,0.83126,2404.9,2404.8,27.27729]
[1751051535488,0.83126,2404.9,2404.8,26.446]
[1751051535794,6.75095,2405.0,2404.8,27.27729]
[1751051536087,0.83126,2404.9,2404.8,26.446]
[1751051536387,0.83126,2404.9,2404.8,27.27729]
[1751051536587,0.83126,2404.9,2404.8,26.446]
[1751051537683,2.25156,2404.9,2404.8,26.446]
[1751051539385,1.4203,2404.9,2404.5,3.2078]
[1751051539586,0.83139,2404.5,2404.4,8.02741]
[1751051539792,0.83139,2404.5,2404.4,34.46341]
[1751051540093,1.74638,2404.6,2404.4,34.46341]
[1751051540282,0.83139,2404.5,2404.4,7.196]
[1751051540484,3.13758,2404.6,2404.4,34.46343]
[1751051540782,0.83139,2404.5,2404.4,33.632]
[1751051540987,0.83144,2404.4,2404.2,44.83929]
[1751051541189,0.83146,2404.3,2404.2,44.83929]
[1751051541584,3.8703923,2404.3,2403.9,6.5085301]
[1751051541886,0.83157,2404.0,2403.9,4.03939]
[1751051542081,4.7019523,2404.1,2403.9,71.27139]
[1751051542292,3.8703923,2404.1,2403.9,44.0078]
[1751051542482,7.9931923,2404.1,2403.6,3.2078]
[1751051542689,4.7020623,2403.7,2403.6,3.2078]
[1751051542884,3.8703923,2403.9,2403.6,29.6398]
[1751051543087,5.3432923,2403.9,2403.6,29.6398]
[1751051543287,3.8703923,2403.7,2403.5,26.43]
[1751051543600,0.83178,2403.4,2403.3,3.2078]
[1751051543784,4.7021723,2403.4,2403.3,3.2078]
[1751051543987,4.7021723,2403.4,2403.3,29.6368]
[1751051544293,8.2885,2403.6,2403.3,29.6368]
[1751051544493,0.83178,2403.4,2403.3,29.6368]
[1751051544797,0.83188,2403.2,2403.0,4.0397]
[1751051545096,15.73221491,2403.6,2403.1,0.83188]
[1751051545097,2.30473,2403.3,2403.1,0.83188]
[1751051545295,6.8156,2403.6,2403.5,0.83174]
[1751051545486,6.8156,2403.6,2403.1,26.426]
[1751051545487,6.8156,2403.6,2403.4,26.426]
[1751051545683,6.8156,2403.6,2403.4,27.25775]
[1751051545684,0.83174,2403.5,2403.4,27.25775]
[1751051545897,0.83174,2403.5,2403.4,26.426]
[1751051546592,0.83174,2403.5,2403.4,27.25776]
[1751051546794,0.83174,2403.5,2403.4,26.426]
[1751051547102,0.83174,2403.5,2403.4,27.25778]
[1751051547491,2.65732,2403.6,2403.4,27.25778]
[1751051548185,0.83174,2403.5,2403.4,26.426]
[1751051548385,0.83178,2403.4,2403.3,3.2078]
[1751051548589,0.83181,2403.3,2403.1,27.25886]
[1751051548790,2.2342,2403.4,2403.2,0.83184]
[1751051549394,1.4024,2403.4,2403.3,0.83181]
[1751051549691,1.4024,2403.4,2403.0,3.2078]
[1751051550004,7.44371491,2403.3,2403.0,30.4637]
[1751051550298,1.4024,2403.2,2403.0,29.6318]
[1751051550498,1.4024,2403.2,2403.1,0.83188]
[1751051550698,0.83179,2403.4,2403.2,0.83183]
[1751051550897,2.07945,2403.4,2403.0,3.2078]
[1751051551201,0.83188,2403.1,2403.0,3.2078]
[1751051551598,3.18898,2403.1,2403.0,3.2078]
[1751051551987,7.3571,2403.1,2402.4,10.4078]
[1751051552189,3.2078,2402.8,2402.4,10.4078]
[1751051552394,0.83204,2402.7,2402.4,37.66191]
[1751051552702,2.26342,2402.7,2402.5,0.83209]
[1751051552897,2.26342,2402.7,2402.5,27.25409]
[1751051553103,0.8321,2402.5,2402.2,8.03216]
[1751051553305,3.2078,2402.4,2402.3,0.83216]
[1751051553498,3.2078,2402.4,2402.2,33.62]
[1751051553499,3.2078,2402.4,2402.2,75.25217]
[1751051553694,4.03992,2402.4,2402.2,75.25217]
[1751051554006,3.2078,2402.4,2402.3,0.83216]
[1751051554402,3.2078,2402.4,2401.9,7.202]
[1751051554607,2.25847,2402.3,2402.1,0.83222]
[1751051554900,0.0173,2402.2,2402.1,0.83222]
[1751051555103,0.84951,2402.2,2402.0,27.25226]
[1751051555297,0.0173,2402.2,2402.0,26.42]
[1751051555496,0.0173,2402.2,2402.1,0.83222]
[1751051555694,10.65151491,2402.4,2401.9,40.8]
[1751051555904,0.83226,2402.0,2401.9,48.002]
[1751051556205,0.83226,2402.0,2401.9,7.202]
[1751051556598,0.83226,2402.0,2401.9,33.622]
[1751051556801,11.48377491,2402.1,2401.9,33.622]
[1751051556995,0.83234,2401.8,2401.5,3.28013717]
[1751051557200,7.44371491,2401.7,2401.6,7.163]
[1751051557401,0.83236,2401.8,2401.6,7.163]
[1751051557699,0.83236,2401.7,2401.6,7.163]
[1751051558208,0.8323,2401.9,2401.7,0.83234]
[1751051558400,7.3185,2402.0,2401.8,0.83233]
[1751051558401,8.15078,2402.0,2401.8,0.83233]
[1751051558601,4.99,2402.0,2401.9,0.83229]
[1751051558801,4.99,2402.0,2401.8,26.422]
[1751051558802,3.2078,2402.4,2402.3,0.83216]
[1751051559303,5.6045,2402.8,2402.7,0.83202]
[1751051559506,3.2078,2402.8,2402.7,0.83202]
[1751051559701,0.83205,2402.7,2402.5,7.165]
[1751051559898,8.27576491,2402.6,2402.5,7.165]
[1751051560096,8.27576491,2402.6,2402.4,0.83212]
[1751051560310,0.83204,2402.7,2402.5,0.83209]
[1751051560497,12.93821491,2402.8,2402.6,0.83204]
[1751051560700,12.93821491,2402.8,2402.6,7.99704]
[1751051560701,12.10621491,2402.8,2402.6,7.99704]
[1751051560899,3.2078,2402.8,2402.6,7.99703]
[1751051561107,3.2078,2402.8,2402.6,7.165]
[1751051561298,8.1978,2402.8,2402.6,7.165]
[1751051561804,0.83202,2402.7,2402.6,7.165]
[1751051562005,8.1978,2402.8,2402.7,0.83202]
[1751051562307,3.2078,2402.8,2402.7,0.83202]
[1751051562504,3.2078,2403.1,2403.0,0.8319]
[1751051562709,8.1978,2403.1,2403.0,0.8319]
[1751051563500,8.1978,2403.1,2403.0,7.9969]
[1751051564103,9.02968,2403.1,2403.0,7.9969]
[1751051564309,8.1978,2403.1,2403.0,7.9969]
[1751051564707,3.2078,2403.1,2403.0,7.9969]
[1751051565111,4.03968,2403.1,2403.0,7.9969]
[1751051565307,13.37421491,2403.3,2403.0,7.99691]
[1751051565308,0.83186,2403.2,2403.0,7.99691]
[1751051565511,0.83186,2403.2,2403.1,0.83188]
[1751051565812,13.26554491,2403.3,2403.1,0.83188]
[1751051566011,4.99,2403.3,2403.2,0.83184]
[1751051566210,0.83177,2403.4,2403.3,0.83181]
[1751051566405,0.83176,2403.5,2403.4,0.83177]
[1751051566709,0.87604,2403.5,2403.4,0.83177]
[1751051566907,0.0443,2403.5,2403.4,7.165]
[1751051567111,0.87604,2403.5,2403.4,7.165]
[1751051572304,0.0443,2403.5,2403.4,7.99677]
[1751051572915,3.2078,2403.7,2403.6,0.83171]
[1751051573107,8.1978,2403.7,2403.6,0.83171]
[1751051573412,8.1978,2403.7,2403.4,7.165]
[1751051573907,8.1978,2403.7,2403.6,0.83171]
[1751051574108,9.02947,2403.7,2403.5,0.83171]
[1751051574515,8.1978,2403.7,2403.6,0.83171]
[1751051575013,4.1687,2404.0,2403.9,0.8316]
[1751051575218,1.118,2403.9,2403.8,7.165]
[1751051575908,1.118,2403.9,2403.5,28.7983]
[1751051575909,0.83171,2403.6,2403.5,0.9473]
[1751051576104,0.83171,2403.6,2403.5,34.39074]
[1751051576409,0.83168,2403.7,2403.6,0.83168]
[1751051576608,0.83166,2403.8,2403.7,0.83166]
[1751051576808,1.11802,2403.9,2403.8,0.83164]
[1751051577120,1.11802,2403.9,2403.5,34.9164]
[1751051577121,0.83164,2403.8,2403.7,0.83165]
[1751051577413,1.11803,2403.9,2403.8,0.83164]
[1751051579118,0.83166,2403.8,2403.7,0.83166]
[1751051580310,1.7589,2403.9,2403.7,33.552]
[1751051580509,0.83166,2403.8,2403.7,34.38365]
[1751051580712,0.83168,2403.7,2403.6,0.83168]
[1751051580914,0.83171,2403.6,2403.5,41.63173]
[1751051581205,0.2864,2403.9,2403.8,0.83164]
[1751051581411,3.2078,2404.0,2403.8,0.83164]
[1751051581610,4.03938,2404.0,2403.9,34.3806]
[1751051581812,3.2078,2404.0,2403.9,34.3796]
[1751051582815,4.99,2404.2,2404.1,0.83153]
[1751051583322,4.18305,2404.4,2404.3,0.83146]
[1751051583513,4.18305,2404.4,2404.3,33.544]
[1751051584310,0.83146,2404.3,2404.2,33.542]
[1751051584519,0.83156,2404.1,2403.9,0.83158]
[1751051584717,0.83152,2404.2,2404.0,33.541]
[1751051584914,0.83152,2404.2,2404.1,0.83153]
[1751051585322,0.83146,2404.3,2404.1,0.8315]
[1751051585519,3.3516,2404.4,2404.0,34.37254]
[1751051585820,0.83152,2404.2,2404.1,0.83152]
[1751051586314,0.83148,2404.3,2404.2,0.8315]
[1751051586713,3.3516,2404.4,2404.3,0.83146]
[1751051586918,4.18303,2404.4,2404.3,26.373]
[1751051587621,5.53683,2404.4,2404.3,26.373]
[1751051589127,5.53683,2404.4,2404.3,27.20446]
[1751051589323,3.3516,2404.4,2404.3,26.373]
[1751051589625,4.03923,2404.4,2404.3,27.20446]
[1751051589828,3.2078,2404.4,2404.3,27.20446]
[1751051590532,4.99,2404.6,2404.5,0.83139]
[1751051590715,0.12271,2404.7,2404.5,34.33039]
[1751051590916,0.83136,2404.6,2404.5,34.33039]
[1751051591320,0.83136,2404.6,2404.5,33.499]
[1751051591738,0.83136,2404.6,2404.5,34.33039]
[1751051592428,0.12271,2404.7,2404.6,0.83136]
[1751051592824,0.83136,2404.6,2404.5,34.33037]
[1751051593625,0.83136,2404.6,2404.5,33.499]
[1751051593927,7.44371491,2404.6,2404.2,0.9379]
[1751051594127,4.6516,2404.5,2404.3,34.32046]
[1751051594333,0.83145,2404.4,2404.3,34.32046]
[1751051594530,0.83145,2404.4,2404.3,33.489]
[1751051594823,4.6516,2404.5,2404.2,26.353]
[1751051595031,0.83146,2404.3,2404.2,26.353]
[1751051595331,0.8315,2404.2,2404.1,7.96652]
[1751051595628,0.8315,2404.2,2404.1,34.31852]
[1751051596022,0.8315,2404.2,2404.1,33.487]
[1751051596932,1.8618,2404.4,2404.1,33.484]
[1751051597142,0.8315,2404.2,2404.1,33.484]
[1751051597431,0.83148,2404.3,2404.1,34.31551]
[1751051597933,0.8315,2404.2,2404.1,34.31553]
[1751051598232,4.99,2404.5,2404.4,0.83143]
[1751051598432,0.83137,2404.6,2404.5,0.83139]
[1751051598631,0.12271,2404.7,2404.6,0.83136]
[1751051598927,0.95404,2404.7,2404.6,26.346]
[1751051599434,0.95404,2404.7,2404.6,27.17736]
[1751051599632,0.12271,2404.7,2404.6,27.17736]
[1751051599834,0.95404,2404.7,2404.6,27.17736]
[1751051600220,0.12271,2404.7,2404.6,27.17736]
[1751051600431,0.95404,2404.7,2404.6,27.17736]
[1751051600835,0.95404,2404.7,2404.6,26.346]
[1751051602236,0.12271,2404.7,2404.6,27.17736]
[1751051603237,0.95404,2404.7,2404.6,27.17736]
[1751051603628,4.48746556,2404.9,2404.8,0.83129]
[1751051603842,4.48746556,2404.9,2404.8,37.81980491]
[1751051604034,1.9066,2405.6,2404.8,34.5448]
[1751051604335,1.9066,2405.6,2405.3,0.83109]
[1751051604336,0.83107,2405.5,2405.3,0.83109]
[1751051604544,2.29637,2405.5,2405.4,33.468]
[1751051606736,2.07772,2405.4,2405.2,26.327]